fUST/lending_fUST_20240814
["ID","MTS","AMOUNT","RATE_DAILY","PERIOD"]
[334905960,1723635073540,-500.0,0.00016712,2]
[334905961,1723635073551,-500.0,0.00016712,2]
[334905962,1723635073563,-500.0,0.00016712,2]
[334905963,1723635073573,-151.0,0.00016712,2]
[334905964,1723635073585,-729.53,0.00016712,2]
[334905965,1723635073595,-500.0,0.00016712,2]
[334905966,1723635073604,-752.29,0.00016712,2]
[334905967,1723635073614,-1148.36,0.00016712,2]
[334905968,1723635073624,-151.0,0.00016712,2]
[334905969,1723635073633,-500.0,0.00016712,2]
[334905970,1723635073644,-748.17,0.00016712,2]
[334905971,1723635073654,-500.0,0.00016712,2]
[334905972,1723635073663,-1560.315808,0.00016712,2]
[334905973,1723635073675,-1560.315808,0.00016712,2]
[334905974,1723635073685,-500.0,0.00016712,2]
[334905975,1723635073694,-151.0,0.00016712,2]
[334905976,1723635073704,-500.0,0.00016712,2]
[334905977,1723635073714,-185.862977,0.00016712,2]
[334905978,1723635073724,-185.862977,0.00016712,2]
[334905979,1723635073734,-604.73,0.00016712,2]
[334905980,1723635073743,-500.77,0.00016712,2]
[334905981,1723635073830,-639.97,0.00016712,2]
[334905982,1723635073840,-500.0,0.00016712,2]
[334905983,1723635073850,-1809.08,0.00016712,2]
[334905984,1723635073859,-590.38,0.00016712,2]
[334905985,1723635073869,-1086.68,0.00016712,2]
[334905986,1723635073879,-751.13,0.00016712,2]
[334905987,1723635073888,-671.25,0.00016712,2]
[334905988,1723635073897,-788.87,0.00016712,2]
[334905989,1723635073907,-867.43,0.00016712,2]
[334905990,1723635073919,-416.3225099,0.00016712,2]
[334905991,1723635073929,-520.09,0.00016712,2]
[334905992,1723635073938,-876.17,0.00016712,2]
[334905993,1723635073947,-3030.93,0.00016712,2]
[334905994,1723635073956,-4316.81,0.00016712,2]
[334905995,1723635073966,-500.0,0.00016712,2]
[334905996,1723635073976,-745.65,0.00016712,2]
[334905997,1723635073986,-500.0,0.00016712,2]
[334905998,1723635073995,-802.0,0.00016712,2]
[334905999,1723635074006,-1202.94,0.00016712,2]
[334906000,1723635074016,-500.0,0.00016712,2]
[334906001,1723635074026,-500.0,0.00016712,2]
[334906002,1723635074036,-735.63,0.00016712,2]
[334906003,1723635074048,-516.15,0.00016712,2]
[334906004,1723635074061,-709.89,0.00016712,2]
[334906005,1723635074070,-500.0,0.00016712,2]
[334906006,1723635074080,-513.65,0.00016712,2]
[334906007,1723635074090,-3876.72,0.00016712,2]
[334906008,1723635074100,-526.34,0.00016712,2]
[334906009,1723635074109,-500.0,0.00016712,2]
[334906010,1723635074118,-609.16,0.00016712,2]
[334906011,1723635074127,-1595.58,0.00016712,2]
[334906012,1723635074137,-886.37,0.00016712,2]
[334906013,1723635074149,-541.35,0.00016712,2]
[334906014,1723635074160,-373.21649375,0.00016712,2]
[334906015,1723635074172,-1194.731559,0.00016712,2]
[334906016,1723635074181,-500.0,0.00016712,2]
[334906017,1723635074190,-500.0,0.00016712,2]
[334906018,1723635074201,-1194.731559,0.00016712,2]
[334906019,1723635074210,-500.0,0.00016712,2]
[334906020,1723635074222,-500.0,0.00016712,2]
[334906021,1723635074233,-354.28634693,0.00016712,2]
[334906022,1723635074244,-516.04,0.00016712,2]
[334906023,1723635074257,-333.44410225,0.00016712,2]
[334906024,1723635074268,-500.0,0.00016712,2]
[334906025,1723635074277,-582.76278,0.00016712,2]
[334906026,1723635074287,-151.0,0.00016712,2]
[334906027,1723635074296,-8875.6,0.00016712,2]
[334906028,1723635074307,-500.0,0.00016712,2]
[334906029,1723635074317,-582.76278,0.00016712,2]
[334906030,1723635074327,-160.0,0.0001677,2]
[334906031,1723635074336,-154.79103211,0.00016986,2]
[334906032,1723635074345,-500.0,0.00016986,2]
[334906033,1723635074354,-1156.12,0.00016986,2]
[334906034,1723635074364,-200.0,0.00016986,2]
[334906035,1723635074373,-151.0,0.00016986,2]
[334906036,1723635074382,-247.111536,0.00016986,2]
[334906037,1723635074392,-247.111536,0.00016986,2]
[334906038,1723635074401,-500.0,0.00016986,2]
[334906039,1723635074411,-151.0,0.00016986,2]
[334906040,1723635074422,-500.0,0.00016986,2]
[334906041,1723635074432,-500.0,0.00016986,2]
[334906042,1723635074441,-500.0,0.00016986,2]
[334906043,1723635074451,-151.0,0.00016986,2]
[334906044,1723635074461,-500.0,0.00016986,2]
[334906045,1723635074471,-500.0,0.00016986,2]
[334906046,1723635074481,-151.0,0.00016986,2]
[334906047,1723635074491,-500.0,0.00016986,2]
[334906048,1723635074501,-151.0,0.00016986,2]
[334906049,1723635074511,-151.0,0.00016986,2]
[334906050,1723635074522,-729.53,0.00016986,2]
[334906051,1723635074533,-500.0,0.00016986,2]
[334906052,1723635074545,-752.29,0.00016986,2]
[334906053,1723635074557,-1148.36,0.00016986,2]
[334906054,1723635074567,-500.0,0.00016986,2]
[334906055,1723635074577,-748.17,0.00016986,2]
[334906056,1723635074587,-500.0,0.00016986,2]
[334906057,1723635074597,-500.0,0.00016986,2]
[334906058,1723635074607,-500.0,0.00016986,2]
[334906059,1723635074616,-604.73,0.00016986,2]
[334906060,1723635074625,-500.77,0.00016986,2]
[334906061,1723635074635,-639.97,0.00016986,2]
[334906062,1723635074645,-500.0,0.00016986,2]
[334906063,1723635074654,-1809.08,0.00016986,2]
[334906064,1723635074664,-590.38,0.00016986,2]
[334906065,1723635074675,-1086.68,0.00016986,2]
[334906066,1723635074684,-751.13,0.00016986,2]
[334906067,1723635074694,-671.25,0.00016986,2]
[334906068,1723635074703,-788.87,0.00016986,2]
[334906069,1723635074713,-692.822133,0.00016986,2]
[334906070,1723635074722,-692.822133,0.00016986,2]
[334906071,1723635074732,-867.43,0.00016986,2]
[334906072,1723635074743,-1328.988569,0.00016986,2]
[334906073,1723635074753,-520.09,0.00016986,2]
[334906074,1723635074763,-1328.988569,0.00016986,2]
[334906075,1723635074773,-876.17,0.00016986,2]
[334906076,1723635074783,-151.0,0.00016986,2]
[334906077,1723635074793,-3030.93,0.00016986,2]
[334906078,1723635074803,-451.064135,0.00016986,2]
[334906079,1723635074813,-4316.81,0.00016986,2]
[334906080,1723635074822,-500.0,0.00016986,2]
[334906081,1723635074832,-745.65,0.00016986,2]
[334906082,1723635074841,-451.064135,0.00016986,2]
[334906083,1723635074852,-500.0,0.00016986,2]
[334906084,1723635074862,-802.0,0.00016986,2]
[334906085,1723635074872,-1202.94,0.00016986,2]
[334906086,1723635074881,-500.0,0.00016986,2]
[334906087,1723635074891,-500.0,0.00016986,2]
[334906088,1723635074901,-735.63,0.00016986,2]
[334906089,1723635074912,-516.15,0.00016986,2]
[334906090,1723635074922,-709.89,0.00016986,2]
[334906091,1723635074931,-500.0,0.00016986,2]
[334906092,1723635074941,-513.65,0.00016986,2]
[334906093,1723635074950,-2717.504076,0.00016986,2]
[334906094,1723635074960,-3876.72,0.00016986,2]
[334906095,1723635074970,-2717.504076,0.00016986,2]
[334906096,1723635074979,-526.34,0.00016986,2]
[334906097,1723635074989,-500.0,0.00016986,2]
[334906098,1723635074999,-609.16,0.00016986,2]
[334906099,1723635075009,-1595.58,0.00016986,2]
[334906100,1723635075018,-886.37,0.00016986,2]
[334906101,1723635075029,-541.35,0.00016986,2]
[334906102,1723635075039,-500.0,0.00016986,2]
[334906103,1723635075049,-500.0,0.00016986,2]
[334906104,1723635075058,-500.0,0.00016986,2]
[334906105,1723635075068,-500.0,0.00016986,2]
[334906106,1723635075077,-516.04,0.00016986,2]
[334906107,1723635075087,-500.0,0.00016986,2]
[334906108,1723635075098,-8875.6,0.00016986,2]
[334906109,1723635075107,-500.0,0.00016986,2]
[334906110,1723635075118,-154.77557542,0.00017,2]
[334906111,1723635075128,-200.0,0.00017,2]
[334906112,1723635075138,-1000.0,0.00017,2]
[334906113,1723635075153,-500.0,0.00017221,2]
[334906114,1723635075162,-500.0,0.0001726,2]
[334906115,1723635075173,-1156.12,0.0001726,2]
[334906116,1723635075182,-200.0,0.0001726,2]
[334906117,1723635075193,-500.0,0.0001726,2]
[334906118,1723635075202,-500.0,0.0001726,2]
[334906119,1723635075212,-500.0,0.0001726,2]
[334906120,1723635075222,-500.0,0.0001726,2]
[334906121,1723635075231,-216.62152436,0.0001726,2]
[334906122,1723635075241,-608.09550956,0.0001726,2]
[334906123,1723635075251,-500.0,0.0001726,2]
[334906124,1723635075260,-729.53,0.0001726,2]
[334906125,1723635075270,-500.0,0.0001726,2]
[334906126,1723635075279,-752.29,0.0001726,2]
[334906127,1723635075289,-1148.36,0.0001726,2]
[334906128,1723635075371,-500.0,0.0001726,2]
[334906129,1723635075381,-748.17,0.0001726,2]
[334906130,1723635075392,-500.0,0.0001726,2]
[334906131,1723635075401,-500.0,0.0001726,2]
[334906132,1723635075410,-500.0,0.0001726,2]
[334906133,1723635075421,-604.73,0.0001726,2]
[334906134,1723635075430,-500.77,0.0001726,2]
[334906135,1723635075440,-639.97,0.0001726,2]
[334906136,1723635075450,-500.0,0.0001726,2]
[334906137,1723635075459,-1809.08,0.0001726,2]
[334906138,1723635075469,-590.38,0.0001726,2]
[334906139,1723635075478,-1086.68,0.0001726,2]
[334906140,1723635075488,-751.13,0.0001726,2]
[334906141,1723635075497,-671.25,0.0001726,2]
[334906142,1723635075507,-788.87,0.0001726,2]
[334906143,1723635075518,-867.43,0.0001726,2]
[334906144,1723635075529,-520.09,0.0001726,2]
[334906145,1723635075538,-876.17,0.0001726,2]
[334906146,1723635075548,-3030.93,0.0001726,2]
[334906147,1723635075558,-4316.81,0.0001726,2]
[334906148,1723635075567,-500.0,0.0001726,2]
[334906149,1723635075577,-745.65,0.0001726,2]
[334906150,1723635075587,-500.0,0.0001726,2]
[334906151,1723635075597,-802.0,0.0001726,2]
[334906152,1723635075607,-1202.94,0.0001726,2]
[334906153,1723635075617,-500.0,0.0001726,2]
[334906154,1723635075627,-500.0,0.0001726,2]
[334906155,1723635075636,-735.63,0.0001726,2]
[334906156,1723635075646,-516.15,0.0001726,2]
[334906157,1723635075656,-709.89,0.0001726,2]
[334906158,1723635075665,-500.0,0.0001726,2]
[334906159,1723635075677,-513.65,0.0001726,2]
[334906160,1723635075688,-3876.72,0.0001726,2]
[334906161,1723635075697,-526.34,0.0001726,2]
[334906162,1723635075707,-500.0,0.0001726,2]
[334906163,1723635075717,-609.16,0.0001726,2]
[334906164,1723635075727,-1595.58,0.0001726,2]
[334906165,1723635075737,-886.37,0.0001726,2]
[334906166,1723635075748,-541.35,0.0001726,2]
[334906167,1723635075757,-500.0,0.0001726,2]
[334906168,1723635075767,-500.0,0.0001726,2]
[334906169,1723635075776,-500.0,0.0001726,2]
[334906170,1723635075786,-500.0,0.0001726,2]
[334906171,1723635075796,-516.04,0.0001726,2]
[334906172,1723635075805,-500.0,0.0001726,2]
[334906173,1723635075815,-8875.6,0.0001726,2]
[334906174,1723635075824,-500.0,0.0001726,2]
[334906175,1723635075833,-207.3931713,0.0001726,2]
[334906176,1723635075843,-465.02858379,0.00017269,2]
[334906177,1723635075853,-1345.2413753,0.00017476,2]
[334906178,1723635075862,-872.55,0.000175,2]
[334906179,1723635075872,-1000.0,0.000175,2]
[334906180,1723635075881,-2893.0,0.000175,2]
[334906181,1723635075890,-500.0,0.00017534,2]
[334906182,1723635075900,-1156.12,0.00017534,2]
[334906183,1723635075909,-634.02816833,0.00017534,2]
[334906184,1723635075920,-500.0,0.00017534,2]
[334906185,1723635075930,-500.0,0.00017534,2]
[334906186,1723635075939,-500.0,0.00017534,2]
[334906187,1723635075949,-500.0,0.00017534,2]
[334906188,1723635075958,-729.53,0.00017534,2]
[334906189,1723635075968,-542.0931782,0.00017534,2]
[334906190,1723635075977,-752.29,0.00017534,2]
[334906191,1723635075986,-1148.36,0.00017534,2]
[334906192,1723635075995,-500.0,0.00017534,2]
[334906193,1723635076005,-748.17,0.00017534,2]
[334906194,1723635076015,-500.0,0.00017534,2]
[334906195,1723635076024,-500.0,0.00017534,2]
[334906196,1723635076034,-500.0,0.00017534,2]
[334906197,1723635076043,-604.73,0.00017534,2]
[334906198,1723635076053,-500.77,0.00017534,2]
[334906199,1723635076062,-639.97,0.00017534,2]
[334906200,1723635076071,-500.0,0.00017534,2]
[334906201,1723635076080,-1809.08,0.00017534,2]
[334906202,1723635076090,-590.38,0.00017534,2]
[334906203,1723635076100,-1086.68,0.00017534,2]
[334906204,1723635076109,-751.13,0.00017534,2]
[334906205,1723635076118,-671.25,0.00017534,2]
[334906206,1723635076128,-788.87,0.00017534,2]
[334906207,1723635076138,-867.43,0.00017534,2]
[334906208,1723635076149,-520.09,0.00017534,2]
[334906209,1723635076162,-876.17,0.00017534,2]
[334906210,1723635076174,-3030.93,0.00017534,2]
[334906211,1723635076185,-4316.81,0.00017534,2]
[334906212,1723635076195,-500.0,0.00017534,2]
[334906213,1723635076204,-745.65,0.00017534,2]
[334906214,1723635076217,-500.0,0.00017534,2]
[334906215,1723635076230,-802.0,0.00017534,2]
[334906216,1723635076242,-1202.94,0.00017534,2]
[334906217,1723635076253,-486.0395717,0.00017534,2]
[334906218,1723635076264,-500.0,0.00017534,2]
[334906219,1723635076275,-735.63,0.00017534,2]
[334906220,1723635076284,-516.15,0.00017534,2]
[334906221,1723635076294,-709.89,0.00017534,2]
[334906222,1723635076304,-500.0,0.00017534,2]
[334906223,1723635076314,-513.65,0.00017534,2]
[334906224,1723635076325,-3876.72,0.00017534,2]
[334906225,1723635076335,-526.34,0.00017534,2]
[334906226,1723635076345,-500.0,0.00017534,2]
[334906227,1723635076354,-609.16,0.00017534,2]
[334906228,1723635076363,-1595.58,0.00017534,2]
[334906229,1723635076374,-886.37,0.00017534,2]
[334906230,1723635076383,-541.35,0.00017534,2]
[334906231,1723635076393,-500.0,0.00017534,2]
[334906232,1723635076403,-500.0,0.00017534,2]
[334906233,1723635076413,-500.0,0.00017534,2]
[334906234,1723635076424,-500.0,0.00017534,2]
[334906235,1723635076433,-516.04,0.00017534,2]
[334906236,1723635076443,-500.0,0.00017534,2]
[334906237,1723635076453,-8875.6,0.00017534,2]
[334906238,1723635076463,-500.0,0.00017534,2]
[334906239,1723635076472,-1856.91833467,0.00017536,2]
[334906240,1723635076481,-160.0,0.00017567,3]
[334906241,1723635076491,-597.11835234,0.00017667,2]
[334906242,1723635076500,-500.0,0.00017808,2]
[334906243,1723635076510,-1156.12,0.00017808,2]
[334906244,1723635076519,-500.0,0.00017808,2]
[334906245,1723635076530,-500.0,0.00017808,2]
[334906246,1723635076539,-500.0,0.00017808,2]
[334906247,1723635076549,-500.0,0.00017808,2]
[334906248,1723635076559,-729.53,0.00017808,2]
[334906249,1723635076568,-752.29,0.00017808,2]
[334906250,1723635076577,-1148.36,0.00017808,2]
[334906251,1723635076587,-500.0,0.00017808,2]
[334906252,1723635076597,-748.17,0.00017808,2]
[334906253,1723635076607,-500.0,0.00017808,2]
[334906254,1723635076616,-500.0,0.00017808,2]
[334906255,1723635076626,-500.0,0.00017808,2]
[334906256,1723635076635,-604.73,0.00017808,2]
[334906257,1723635076645,-500.77,0.00017808,2]
[334906258,1723635076654,-639.97,0.00017808,2]
[334906259,1723635076664,-500.0,0.00017808,2]
[334906260,1723635076675,-1809.08,0.00017808,2]
[334906261,1723635076685,-590.38,0.00017808,2]
[334906262,1723635076695,-1086.68,0.00017808,2]
[334906263,1723635076775,-751.13,0.00017808,2]
[334906264,1723635076785,-671.25,0.00017808,2]
[334906265,1723635076795,-788.87,0.00017808,2]
[334906266,1723635076805,-867.43,0.00017808,2]
[334906267,1723635076814,-520.09,0.00017808,2]
[334906268,1723635076824,-876.17,0.00017808,2]
[334906269,1723635076833,-3030.93,0.00017808,2]
[334906270,1723635076843,-4316.81,0.00017808,2]
[334906271,1723635076853,-500.0,0.00017808,2]
[334906272,1723635076863,-745.65,0.00017808,2]
[334906273,1723635076873,-500.0,0.00017808,2]
[334906274,1723635076882,-802.0,0.00017808,2]
[334906275,1723635076893,-1202.94,0.00017808,2]
[334906276,1723635076904,-500.0,0.00017808,2]
[334906277,1723635076915,-735.63,0.00017808,2]
[334906278,1723635076928,-516.15,0.00017808,2]
[334906279,1723635076939,-709.89,0.00017808,2]
[334906280,1723635076950,-500.0,0.00017808,2]
[334906281,1723635076960,-513.65,0.00017808,2]
[334906282,1723635076971,-3876.72,0.00017808,2]
[334906283,1723635076981,-526.34,0.00017808,2]
[334906284,1723635076991,-500.0,0.00017808,2]
[334906285,1723635077001,-609.16,0.00017808,2]
[334906286,1723635077011,-1595.58,0.00017808,2]
[334906287,1723635077022,-886.37,0.00017808,2]
[334906288,1723635077031,-541.35,0.00017808,2]
[334906289,1723635077041,-500.0,0.00017808,2]
[334906290,1723635077051,-500.0,0.00017808,2]
[334906291,1723635077061,-362.27178867,0.00017808,2]
[334906292,1723635077072,-500.0,0.00017808,2]
[334906293,1723635077081,-516.04,0.00017808,2]
[334906294,1723635077091,-302.70576418,0.00017808,2]
[334906295,1723635077100,-8875.6,0.00017808,2]
[334906296,1723635077110,-500.0,0.00017808,2]
[334906297,1723635077119,-1000.0,0.0001785,2]
[334906298,1723635077131,-150.0,0.00017869,2]
[334906299,1723635077141,-388.42045515,0.00017872,2]
[334906300,1723635077155,-42392.12136225,0.00017899,2]
[334906301,1723635077167,-3257.53796344,0.000179,2]
[334906302,1723635077179,-3257.53796341,0.000179,2]
[334906303,1723635077188,-3257.53796341,0.000179,2]
[334906304,1723635077199,-3257.53796341,0.000179,2]
[334906305,1723635077208,-9153.86940131,0.000179,2]
[334906306,1723635077218,-1384.62341381,0.000179,2]
[334906307,1723635077229,-151.0,0.000179,2]
[334906308,1723635077238,-359.600551,0.000179,2]
[334906309,1723635077248,-359.600551,0.000179,2]
[334906310,1723635077258,-1612.303288,0.000179,2]
[334906311,1723635077268,-1612.303288,0.000179,2]
[334906312,1723635077278,-229.694717,0.000179,2]
[334906313,1723635077288,-229.694717,0.000179,2]
[334906314,1723635077298,-504.564442,0.000179,2]
[334906315,1723635077308,-504.564442,0.000179,2]
[334906316,1723635077317,-825.200145,0.000179,2]
[334906317,1723635077327,-825.200145,0.000179,2]
[334906318,1723635077337,-151.0,0.000179,2]
[334906319,1723635077347,-316.144537,0.000179,2]
[334906320,1723635077356,-1247.112199,0.000179,2]
[334906321,1723635077366,-316.144537,0.000179,2]
[334906322,1723635077376,-1247.112199,0.000179,2]
[334906323,1723635077386,-151.0,0.000179,2]
[334906324,1723635077397,-1083.390094,0.000179,2]
[334906325,1723635077407,-1083.390094,0.000179,2]
[334906326,1723635077417,-150.0,0.00017932,2]
[334906327,1723635077429,-520.0,0.00017932,2]
[334906328,1723635077448,-1413.0,0.00017932,2]
[334906329,1723635077458,-192.591101,0.00017932,2]
[334906330,1723635077468,-192.591101,0.00017932,2]
[334906331,1723635077479,-219.14014,0.00017932,2]
[334906332,1723635077489,-219.14014,0.00017932,2]
[334906333,1723635077498,-300.0,0.00018,2]
[334906334,1723635077508,-222.83730098,0.00018,2]
[334906335,1723635077518,-245.09758384,0.00018,2]
[334906336,1723635077532,-151.0,0.00018,2]
[334906337,1723635077542,-151.0,0.00018,2]
[334906338,1723635077552,-1044.87298252,0.00018,2]
[334906339,1723635077563,-205.79776694,0.00018,2]
[334906340,1723635077572,-1000.0,0.00018,2]
[334906341,1723635077582,-1508.6003,0.00018,2]
[334906342,1723635077592,-1508.6003,0.00018,2]
[334906343,1723635077602,-500.0,0.00018082,2]
[334906344,1723635077612,-1156.12,0.00018082,2]
[334906345,1723635077623,-500.0,0.00018082,2]
[334906346,1723635077634,-500.0,0.00018082,2]
[334906347,1723635077644,-500.0,0.00018082,2]
[334906348,1723635077654,-500.0,0.00018082,2]
[334906349,1723635077664,-151.0,0.00018082,2]
[334906350,1723635077677,-729.53,0.00018082,2]
[334906351,1723635077686,-752.29,0.00018082,2]
[334906352,1723635077697,-151.0,0.00018082,2]
[334906353,1723635077707,-1148.36,0.00018082,2]
[334906354,1723635077716,-500.0,0.00018082,2]
[334906355,1723635077726,-748.17,0.00018082,2]
[334906356,1723635077736,-500.0,0.00018082,2]
[334906357,1723635077747,-1560.315808,0.00018082,2]
[334906358,1723635077757,-1560.315808,0.00018082,2]
[334906359,1723635077767,-500.0,0.00018082,2]
[334906360,1723635077777,-151.0,0.00018082,2]
[334906361,1723635077787,-542.19053365,0.00018082,2]
[334906362,1723635077798,-185.862977,0.00018082,2]
[334906363,1723635077807,-185.862977,0.00018082,2]
[334906364,1723635077817,-604.73,0.00018082,2]
[334906365,1723635077826,-500.77,0.00018082,2]
[334906366,1723635077836,-639.97,0.00018082,2]
[334906367,1723635077847,-500.0,0.00018082,2]
[334906368,1723635077857,-151.0,0.00018082,2]
[334906369,1723635077867,-1809.08,0.00018082,2]
[334906370,1723635077877,-590.38,0.00018082,2]
[334906371,1723635077887,-1086.68,0.00018082,2]
[334906372,1723635077897,-751.13,0.00018082,2]
[334906373,1723635077907,-671.25,0.00018082,2]
[334906374,1723635077918,-788.87,0.00018082,2]
[334906375,1723635077930,-867.43,0.00018082,2]
[334906376,1723635077939,-520.09,0.00018082,2]
[334906377,1723635077948,-876.17,0.00018082,2]
[334906378,1723635077958,-3030.93,0.00018082,2]
[334906379,1723635077967,-4316.81,0.00018082,2]
[334906380,1723635077977,-500.0,0.00018082,2]
[334906381,1723635077987,-745.65,0.00018082,2]
[334906382,1723635077997,-500.0,0.00018082,2]
[334906383,1723635078006,-802.0,0.00018082,2]
[334906384,1723635078017,-1202.94,0.00018082,2]
[334906385,1723635078028,-500.0,0.00018082,2]
[334906386,1723635078039,-735.63,0.00018082,2]
[334906387,1723635078049,-516.15,0.00018082,2]
[334906388,1723635078132,-709.89,0.00018082,2]
[334906389,1723635078143,-500.0,0.00018082,2]
[334906390,1723635078157,-513.65,0.00018082,2]
[334906391,1723635078167,-3876.72,0.00018082,2]
[334906392,1723635078180,-526.34,0.00018082,2]
[334906393,1723635078191,-500.0,0.00018082,2]
[334906394,1723635078201,-609.16,0.00018082,2]
[334906395,1723635078211,-1595.58,0.00018082,2]
[334906396,1723635078220,-886.37,0.00018082,2]
[334906397,1723635078232,-1194.731559,0.00018082,2]
[334906398,1723635078243,-541.35,0.00018082,2]
[334906399,1723635078253,-1194.731559,0.00018082,2]
[334906400,1723635078263,-500.0,0.00018082,2]
[334906401,1723635078273,-500.0,0.00018082,2]
[334906402,1723635078283,-500.0,0.00018082,2]
[334906403,1723635078293,-516.04,0.00018082,2]
[334906404,1723635078303,-582.76278,0.00018082,2]
[334906405,1723635078313,-151.0,0.00018082,2]
[334906406,1723635078322,-582.76278,0.00018082,2]
[334906407,1723635078332,-8875.6,0.00018082,2]
[334906408,1723635078342,-213.7095594,0.00018082,2]
[334906409,1723635078351,-160.0,0.00018122,4]
[334906410,1723635078361,-202.58558162,0.00018125,2]
[334906411,1723635078371,-465.00142919,0.00018133,2]
[334906412,1723635078380,-500.0,0.00018356,2]
[334906413,1723635078391,-1156.12,0.00018356,2]
[334906414,1723635078400,-151.0,0.00018356,2]
[334906415,1723635078410,-247.111536,0.00018356,2]
[334906416,1723635078420,-247.111536,0.00018356,2]
[334906417,1723635078432,-500.0,0.00018356,2]
[334906418,1723635078443,-500.0,0.00018356,2]
[334906419,1723635078452,-500.0,0.00018356,2]
[334906420,1723635078461,-500.0,0.00018356,2]
[334906421,1723635078472,-729.53,0.00018356,2]
[334906422,1723635078481,-752.29,0.00018356,2]
[334906423,1723635078491,-1148.36,0.00018356,2]
[334906424,1723635078501,-500.0,0.00018356,2]
[334906425,1723635078511,-748.17,0.00018356,2]
[334906426,1723635078521,-500.0,0.00018356,2]
[334906427,1723635078532,-500.0,0.00018356,2]
[334906428,1723635078544,-604.73,0.00018356,2]
[334906429,1723635078553,-500.77,0.00018356,2]
[334906430,1723635078564,-639.97,0.00018356,2]
[334906431,1723635078574,-500.0,0.00018356,2]
[334906432,1723635078584,-151.0,0.00018356,2]
[334906433,1723635078594,-1809.08,0.00018356,2]
[334906434,1723635078604,-590.38,0.00018356,2]
[334906435,1723635078615,-1086.68,0.00018356,2]
[334906436,1723635078627,-751.13,0.00018356,2]
[334906437,1723635078637,-671.25,0.00018356,2]
[334906438,1723635078646,-788.87,0.00018356,2]
[334906439,1723635078657,-692.822133,0.00018356,2]
[334906440,1723635078666,-692.822133,0.00018356,2]
[334906441,1723635078677,-867.43,0.00018356,2]
[334906442,1723635078687,-1328.988569,0.00018356,2]
[334906443,1723635078696,-520.09,0.00018356,2]
[334906444,1723635078706,-1328.988569,0.00018356,2]
[334906445,1723635078715,-876.17,0.00018356,2]
[334906446,1723635078734,-151.0,0.00018356,2]
[334906447,1723635078752,-3030.93,0.00018356,2]
[334906448,1723635078772,-451.064135,0.00018356,2]
[334906449,1723635078794,-4316.81,0.00018356,2]
[334906450,1723635078817,-500.0,0.00018356,2]
[334906451,1723635078838,-451.064135,0.00018356,2]
[334906452,1723635078857,-745.65,0.00018356,2]
[334906453,1723635078873,-500.0,0.00018356,2]
[334906454,1723635078894,-802.0,0.00018356,2]
[334906455,1723635078913,-1202.94,0.00018356,2]
[334906456,1723635078930,-500.0,0.00018356,2]
[334906457,1723635078945,-735.63,0.00018356,2]
[334906458,1723635078961,-516.15,0.00018356,2]
[334906459,1723635078977,-709.89,0.00018356,2]